Cogmind - Beta 11 X4 @@@ ROGUE MODE // 2021.06.03 @ 20:38:28 Player: Runia Result: Destroyed by Striker with Plasma Lance Performance ------------- Evolutions (8) 4000 Regions Visited (11) 2200 Robots Destroyed (93) 465 Value Destroyed (3962) 3962 Prototype IDs (17) 340 Alien Tech Used (0) 0 Bonus (300) 300 TOTAL SCORE: 11267 Bonus ------- Aligned with FarCom 300 Cogmind --------- Core Integrity 0/1450 Matter 239/300 Energy 29/100 System Corruption 36% Temperature Cool (66) Movement Core (100) Ox1 Location -2/Research Parts ------- > --- POWER (2) -------- (None) > --- PROPULSION (6) --- (None) > --- UTILITY (11) ----- Improved Shield Generator > --- WEAPON (4) ------- (None) > --- INVENTORY (5) ---- Advanced Trap Scanner Advanced Component Analysis Suite Missile Launcher Improved Plasma Cutter Peak State ------------ > --- POWER ------------ Particle Reactor Quantum Reactor > --- PROPULSION ------- Myomer Leg Myomer Leg Myomer Leg Centrium Leg Centrium Leg Improved Antigrav System > --- UTILITY ---------- Huge Storage Unit Enhanced Optical Array Advanced Signal Interpreter Advanced Melee Analysis Suite Advanced Melee Analysis Suite Advanced Target Analyzer Improved Core Analyzer Improved Armor Integrity Analyzer Advanced Hacking Suite System Shield Improved System Backup Module > --- WEAPON ----------- Gravity Flail Katana Katana Katana > --- INVENTORY -------- Particle Reactor Light Particle Reactor Light Particle Reactor Myomer Leg Improved Antigrav System Improved Antigrav System Improved Antigrav System Advanced Heat Sink Advanced Trap Scanner Improved Core Analyzer Improved Powered Armor Improved Shield Generator Advanced Component Analysis Suite Enhanced Quantum Rifle Heavy Neutron Cannon Railgun Missile Launcher Improved Plasma Cutter Katana [Rating: 145] Favorites ----------- Power Improved Deuterium Engine Engine Improved Deuterium Engine Power Core Micro Fission Core Reactor Cold Fusion Reactor Propulsion Potential Leg Treads Advanced Treads Leg Potential Leg Hover Unit Improved Antigrav System Utility Improved Melee Analysis Suite Device Transmission Jammer Storage Large Storage Unit Processor Improved Melee Analysis Suite Hackware Advanced Hacking Suite Protection Improved Weapon Shielding Weapon Katana Energy Gun Shock Rifle Energy Cannon Improved EM Pulse Cannon Ballistic Gun Assault Rifle Launcher Grenade Launcher Special Weapon Field Lobotomy Kit Impact Weapon Power Maul Slashing Weapon Katana Build | -11 -10 -10 -10 -9 -8 -7 -6 -5 -4 -3 -2 ------- Run | Scr Mat Min Exi Min Mat Fac Fac Fac Fac Res Res Slots Evolved 16 | . . . . . 4 2 2 2 2 2 2 Power 1 | . . . . . . . . . 1 . . Propulsion 4 | . . . . . 1 1 . . 1 . 1 Utility 9 | . . . . . 2 1 2 2 . 1 1 Weapon 2 | . . . . . 1 . . . . 1 . Parts Attached 152 | . . 7 6 . 18 33 11 2 25 6 44 Power 18 | . . 2 . . 1 1 2 . 4 1 7 Engine 5 | . . 1 . . . 1 1 . 2 . . Core 4 | . . 1 . . 1 . . . 1 . 1 Reactor 9 | . . . . . . . 1 . 1 1 6 Propulsion 41 | . . . 2 . 2 5 4 . 9 . 19 Treads 2 | . . . . . . 1 . . . . 1 Leg 32 | . . . 2 . 2 4 4 . 9 . 11 Wheel . | . . . . . . . . . . . . Hover 7 | . . . . . . . . . . . 7 Flight . | . . . . . . . . . . . . Utility 50 | . . 2 1 . 6 10 5 2 10 3 11 Device 15 | . . 1 . . 4 4 2 . 2 . 2 Storage 4 | . . . 1 . 1 . . . 1 1 . Processor 16 | . . 1 . . . 3 1 2 3 1 5 Hackware 5 | . . . . . 1 1 . . 2 . 1 Protection 10 | . . . . . . 2 2 . 2 1 3 Artifact . | . . . . . . . . . . . . Weapon 43 | . . 3 3 . 9 17 . . 2 2 7 Energy Gun 7 | . . 1 . . 4 2 . . . . . Energy Cannon 6 | . . . 1 . . 4 . . . . 1 Ballistic Gun 9 | . . 1 1 . 2 1 . . . 2 2 Ballistic Cannon . | . . . . . . . . . . . . Launcher 3 | . . 1 . . 1 . . . 1 . . Special Weapon 1 | . . . 1 . . . . . . . . Impact Weapon 6 | . . . . . 2 3 . . . . 1 Slashing Weapon 11 | . . . . . . 7 . . 1 . 3 Piercing Weapon . | . . . . . . . . . . . . Special Melee Weapon . | . . . . . . . . . . . . Unidentified Prototypes 8 | . . . 3 . . 1 2 . 1 . 1 Corrupted Parts 2 | . . . . . . . . . . . 2 System Corruption 8 | . . . . . . . . . . . 8 Parts Lost 48 | . . 2 . . . 1 1 . 1 1 42 Power 8 | . . 1 . . . . . . . . 7 Propulsion 19 | . . . . . . . . . . . 19 Utility 11 | . . . . . . . 1 . 1 1 8 Weapon 10 | . . 1 . . . 1 . . . . 8 Highest Loss Streak 8 | . . 2 . . . 1 1 . 1 1 8 Average Slot Usage (%) 96 | . 85 97 99 100 99 99 99 94 99 99 89 Engine 2 | . 14 5 . . . 4 6 5 4 . . Core 3 | . . 7 14 14 9 2 . . . 4 3 Reactor 1 | . . . . . . . . . 4 4 3 Treads 1 | . . . . . . 5 . . . . . Leg 22 | . 28 28 28 28 27 23 26 23 25 23 16 Device 8 | . . 11 . . 17 13 11 5 4 4 3 Storage 6 | . 14 14 14 14 9 7 6 5 5 4 3 Processor 17 | . . 1 14 14 8 13 14 23 26 22 27 Hackware 2 | . . . . . . 2 . . 3 4 5 Protection 3 | . . . . . . . 13 11 7 9 3 Energy Gun 2 | . 14 11 6 . 7 1 . . . . . Ballistic Gun 5 | . 14 14 19 28 18 2 . . . 4 2 Impact Weapon 2 | . . . . . . 7 . . . . . Slashing Weapon 10 | . . . . . . 10 20 17 14 14 13 Naked Turns 52 | . . . . . . . . . . . 52 Heaviest Build 129 | 12 12 19 30 30 40 54 44 43 57 126 129 Greatest Support 160 | 20 20 20 60 60 70 100 112 96 125 125 160 Greatest Overweight (x) 34 | . . . . . . . . . . 1 34 Average Overweight (x) . | . . . . . . . . . . . . Largest Inventory Capacity 25 | 8 8 8 15 15 15 15 15 15 15 25 25 Average Capacity 17 | 8 8 8 8 15 15 15 15 15 15 16 24 Most Carried 19 | 5 7 8 9 9 15 15 15 15 15 16 19 Average Carried 13 | 5 5 7 8 9 13 14 14 14 14 14 13 Final Capacity 25 | 8 8 8 15 15 15 15 15 15 15 25 5 Final Carried 15 | 4 7 8 9 9 15 15 15 14 14 15 4 Class Distribution -------------------- 49% | Mutant 19% | Scavenger-Mutant 10% | Infiltrator-Skirmisher 9% | Infiltrator-Mutant 5% | Infiltrator-Assassin 4% | Hacker-Mutant Dominant Class ---------------- Mutant | -10/Materials Mutant | -10/Mines Mutant | -10/Exiles Mutant | -9/Mines Infiltrator-Skirmisher | -8/Materials Mutant | -7/Factory Mutant | -6/Factory Mutant | -5/Factory Mutant | -4/Factory Mutant | -3/Research Scavenger-Mutant | -2/Research Resources | -11 -10 -10 -10 -9 -8 -7 -6 -5 -4 -3 -2 ----------- Run | Scr Mat Min Exi Min Mat Fac Fac Fac Fac Res Res Matter Collected 2118 | 199 10 107 80 . 272 413 95 . 255 91 596 Remotely . | . . . . . . . . . . . . Salvage Created 4760 | . 59 224 . . 585 880 380 . 468 91 2073 Parts 259 | . 1 14 . . 43 38 11 . 28 4 120 Haulers Intercepted 4 | . 1 . . . . 1 2 . . . . Recyclers Shooed 2 | . . 1 . . . . 1 . . . . Parts Field Recycled . | . . . . . . . . . . . . Retrieved Matter . | . . . . . . . . . . . . Parts Self-Destructed . | . . . . . . . . . . . . Prevented . | . . . . . . . . . . . . Kills | -11 -10 -10 -10 -9 -8 -7 -6 -5 -4 -3 -2 ------- Run | Scr Mat Min Exi Min Mat Fac Fac Fac Fac Res Res Combat Hostiles Destroyed 71 | . . 8 . . 14 8 2 . 10 1 28 Melee 38 | . . . . . . 5 2 . 5 1 25 Guns 17 | . . 5 . . 9 2 . . . . 1 Cannons 2 | . . . . . . 1 . . . . 1 AOE 13 | . . 3 . . 5 . . . 5 . . Classes Destroyed 14 | . 1 3 . . 4 3 1 . 1 . 1 Worker 3 | . . . . . 1 . . . 1 . 1 Builder 2 | . . . . . 1 . . . . . 1 Tunneler 3 | . . . . . 1 . . . . . 2 Hauler 4 | . 1 . . . . 1 2 . . . . Recycler 7 | . . 1 . . 1 4 . . . . 1 Mechanic 1 | . . . . . . . 1 . . . . Operator 1 | . . . . . . . . . 1 . . Watcher 1 | . . . . . . 1 . . . . . Swarmer 20 | . . 6 . . 4 1 . . 5 . 4 Grunt 12 | . . 2 . . 3 . 2 . . . 5 Brawler 2 | . . . . . . 2 . . . . . Sentry 15 | . . . . . 7 3 . . 3 1 1 Hunter 2 | . . . . . . . . . . . 2 Programmer 20 | . . . . . . 2 . . 2 . 16 Best Kill Streak 9 | . 1 9 . . 5 4 3 . 5 1 4 Combat Bots Only 8 | . . 8 . . 4 3 1 . 5 1 2 Max Kills in Single Turn 5 | . 1 2 . . 5 1 1 . 4 1 1 Gunslinging 1 | . . 1 . . . . . . . . . Exploded 4 | . . 2 . . 4 . . . 4 . . Melee 1 | . . . . . . 1 1 . 1 1 1 Uniques/NPCs Destroyed . | . . . . . . . . . . . . Combat | -11 -10 -10 -10 -9 -8 -7 -6 -5 -4 -3 -2 -------- Run | Scr Mat Min Exi Min Mat Fac Fac Fac Fac Res Res Damage Taken 10429 | . . 223 . . 779 822 179 . 1120 281 7025 Core 1932 | . . 16 . . 156 140 46 . 82 . 1492 Absorbed by Shields 12 | . . . . . . . . . . . 12 Core Remaining (%) 91 | 100 . . . 93 71 80 94 100 92 100 . Volleys Fired 92 | . 3 13 . . 33 14 . . 3 17 9 Largest 3 | . 2 2 . . 3 3 . . 1 1 2 Hottest 143 | . 70 70 . . 98 115 . . 36 35 143 Shots Fired 184 | . 6 22 . . 95 25 . . 3 17 16 Gun 163 | . 6 18 . . 93 15 . . . 17 14 Cannon 12 | . . . . . . 10 . . . . 2 Launcher 9 | . . 4 . . 2 . . . 3 . . Special . | . . . . . . . . . . . . Kinetic 118 | . 3 9 . . 65 10 . . . 17 14 Thermal 14 | . 3 9 . . . . . . . . 2 Explosive 9 | . . 4 . . 2 . . . 3 . . Electromagnetic 43 | . . . . . 28 15 . . . . . Robot Hit Streak 13 | . 2 6 . . 13 3 . . 1 5 4 Robot Miss Streak 6 | . 3 4 . . 6 5 . . 2 2 1 Penetration Max 1 | . . . . . . 1 . . . . . Secondary Targets 1 | . . 1 . . . . . . . . . Max Gunslinging Chain 1 | . . 1 . . . . . . . . . Shots Hit Robots 351 | . 2 12 . . 63 49 19 . 24 20 162 Core Hits 151 | . 2 13 . . 27 18 6 . 18 4 63 Critical Kills 1 | . . . . . . . . . . . 1 Critical Parts Destroyed 2 | . . . . . . . . . . . 2 Critical Strikes 24 | . 1 . . . 1 1 . . 3 1 17 Burn 1 | . 1 . . . . . . . . . . Destroy 2 | . . . . . . . . . . . 2 Corrupt 1 | . . . . . 1 . . . . . . Smash 1 | . . . . . . . . . . . 1 Sever 19 | . . . . . . 1 . . 3 1 14 Melee Attacks 365 | . . . . . 6 71 32 . 44 8 204 Impact 31 | . . . . . 6 17 . . . . 8 Slashing 334 | . . . . . . 54 32 . 44 8 196 Piercing . | . . . . . . . . . . . . Sneak Attacks 25 | . . . . . . 11 9 . 1 . 4 Combat Hostiles 2 | . . . . . . . 2 . . . . Follow-up Attacks 72 | . . . . . . 9 3 . 6 . 54 Damage Inflicted 12939 | . 25 426 . . 1356 2395 1245 . 1208 269 6015 Guns 1481 | . 25 138 . . 1034 87 . . . . 197 Cannons 216 | . . . . . . 121 . . . . 95 Explosions 957 | . . 288 . . 322 . . . 347 . . Melee 10285 | . . . . . . 2187 1245 . 861 269 5723 Ramming . | . . . . . . . . . . . . Kinetic 1094 | . . 65 . . 745 87 . . . . 197 Thermal 237 | . 25 73 . . 44 . . . . . 95 Explosive 913 | . . 288 . . 278 . . . 347 . . Electromagnetic 410 | . . . . . 289 121 . . . . . Impact 835 | . . . . . . 452 . . . . 383 Slashing 9450 | . . . . . . 1735 1245 . 861 269 5340 Piercing . | . . . . . . . . . . . . Highest Corruption 36 | . . . . . . 2 . . 7 . 36 Average Corruption 7 | . . . . . . 1 . . 3 . 13 Corruption Purged 8 | . . . . . . . . . . . 8 Effects 92 | . . . . . . 5 . . 8 . 79 Message Errors 17 | . . . . . . . . . 3 . 14 Matter Fused 20 | . . . . . . . . . 2 . 18 Heat Flow Errors 11 | . . . . . . . . . 1 . 10 Energy Discharges 17 | . . . . . . 4 . . 1 . 12 Parts Rejected 3 | . . . . . . . . . . . 3 Data Loss (minor) 10 | . . . . . . 1 . . 1 . 8 Data Loss (major) 4 | . . . . . . . . . . . 4 Misfires 1 | . . . . . . . . . . . 1 Alerts 1 | . . . . . . . . . . . 1 Misdirections 8 | . . . . . . . . . . . 8 Overload Shots . | . . . . . . . . . . . . Overflow Damage 1121 | . . 44 . . 22 478 243 . 6 . 328 Projectiles . | . . . . . . . . . . . . Explosions 66 | . . 44 . . 22 . . . . . . Melee 1055 | . . . . . . 478 243 . 6 . 328 Knockbacks 4 | . . . . . . . . . . . 4 Impact 4 | . . . . . . . . . . . 4 Kinetic . | . . . . . . . . . . . . Secondary . | . . . . . . . . . . . . Self-Inflicted Damage 94 | . . 65 . . 27 . . . 2 . . Shots 5 | . . 3 . . 1 . . . 1 . . Rammed 2 | . . . . . . . . . . . 2 Targets Rammed 2 | . . . . . . . . . . . 2 Kicked . | . . . . . . . . . . . . Crushed . | . . . . . . . . . . . . Highest Temperature 238 | . 27 52 . . 126 180 4 . 99 . 238 Average Temperature 60 | . 14 34 . . 46 80 4 . 48 . 91 Received Heat Transfer 852 | . . 63 . . 279 96 90 . 108 36 180 Siege Activations . | . . . . . . . . . . . . Robots Corrupted . | . . . . . . . . . . . . Combat Hostiles . | . . . . . . . . . . . . Parts Fried 3 | . . . . . 1 1 . . . . 1 Impact Corruptions 7 | . . . . . . 3 . . . . 4 Robots Melted . | . . . . . . . . . . . . Combat Hostiles . | . . . . . . . . . . . . Parts Melted . | . . . . . . . . . . . . Heat Transferred 420 | . 148 222 . . . . . . . . 50 Parts Sabotaged . | . . . . . . . . . . . . Parts Stolen . | . . . . . . . . . . . . Parts Stripped . | . . . . . . . . . . . . Power Chain Reactions 1 | . . . . . 1 . . . . . . Missiles Intercepted . | . . . . . . . . . . . . Alert | -11 -10 -10 -10 -9 -8 -7 -6 -5 -4 -3 -2 ------- Run | Scr Mat Min Exi Min Mat Fac Fac Fac Fac Res Res Peak Influence 292 | . 22 198 . . 258 163 106 46 292 124 184 Initial 74 | . . 8 . . . 69 44 40 22 74 69 Average 84 | . 19 119 . . 108 63 65 42 92 90 93 Maximum Alert Level 1 | . . . . . 1 . . . 1 . . Low Security (%) 98 | 100 100 100 . 100 89 100 100 100 98 100 100 Level 1 1 | . . . . . 10 . . . 1 . . Level 2 . | . . . . . . . . . . . . Level 3 . | . . . . . . . . . . . . Level 4 . | . . . . . . . . . . . . Level 5 . | . . . . . . . . . . . . High Security . | . . . . . . . . . . . . Max Security . | . . . . . . . . . . . . Squads Dispatched 17 | . . . . . . 3 2 . 2 . 10 Investigation . | . . . . . . . . . . . . Extermination 11 | . . . . . . 2 1 . 1 . 7 Reinforcement 6 | . . . . . . 1 1 . 1 . 3 Assault . | . . . . . . . . . . . . Garrison . | . . . . . . . . . . . . Intercept . | . . . . . . . . . . . . Construction Impeded . | . . . . . . . . . . . . Haulers Reinforced 2 | . . . . . . 1 1 . . . . Cargo Convoy Interrupts . | . . . . . . . . . . . . Stealth | -11 -10 -10 -10 -9 -8 -7 -6 -5 -4 -3 -2 --------- Run | Scr Mat Min Exi Min Mat Fac Fac Fac Fac Res Res Distress Signals 2 | . . . . . 1 . . . . . 1 Communications Jammed 8 | . . . . . . 7 . . . . 1 Distress Signals 8 | . . . . . . 7 . . . . 1 Times Spotted 123 | . 1 8 . . 22 16 10 . 12 3 51 Peak Tracking Total 11 | . 1 3 . . 4 3 4 . 5 2 11 Tactical Retreats 9 | . . . . . 2 . 3 . . . 4 Traps | -11 -10 -10 -10 -9 -8 -7 -6 -5 -4 -3 -2 ------- Run | Scr Mat Min Exi Min Mat Fac Fac Fac Fac Res Res Traps Triggered 8 | . . . . . 1 2 1 . 3 . 1 Indirectly . | . . . . . . . . . . . . Trap Hack Attempts . | . . . . . . . . . . . . Triggered . | . . . . . . . . . . . . Disarmed . | . . . . . . . . . . . . Reprogrammed . | . . . . . . . . . . . . Reused . | . . . . . . . . . . . . Traps Extracted . | . . . . . . . . . . . . Installed . | . . . . . . . . . . . . Triggered . | . . . . . . . . . . . . Exploded 2 | . . . 1 . 1 . . . . . . Machines | -11 -10 -10 -10 -9 -8 -7 -6 -5 -4 -3 -2 ---------- Run | Scr Mat Min Exi Min Mat Fac Fac Fac Fac Res Res Machines Disabled 4 | . . . . . 1 2 . . 1 . . Max in Single Turn 1 | . . . . . 1 1 . . 1 . . Garrison Access 1 | . . . . . . . 1 . . . . Machines Sabotaged . | . . . . . . . . . . . . Garrisons Compromised . | . . . . . . . . . . . . Overloaded Fab Kills . | . . . . . . . . . . . . Fab Network Shutdowns . | . . . . . . . . . . . . Hacking | -11 -10 -10 -10 -9 -8 -7 -6 -5 -4 -3 -2 --------- Run | Scr Mat Min Exi Min Mat Fac Fac Fac Fac Res Res Machines Accessed 35 | . . 1 4 . 6 10 5 1 7 1 . Terminals 19 | . . . . . 6 6 2 . 5 . . Fabricators 5 | . . . . . . 3 1 . 1 . . Repair Stations 2 | . . . . . . 1 . . . 1 . Recycling Units 1 | . . . . . . . . 1 . . . Scanalyzers 2 | . . . . . . . 1 . 1 . . Garrison Access 1 | . . . . . . . 1 . . . . Total Hacks 110 | . . 1 27 . 19 31 11 3 17 1 . Successful 70 | . . 1 27 . 13 14 5 1 9 . . Failed 40 | . . . . . 6 17 6 2 8 1 . Catastrophic 7 | . . . . . 1 1 2 . 3 . . Database Lockouts . | . . . . . . . . . . . . Manual 22 | . . . 1 . 7 7 3 3 1 . . Terminals 55 | . . . . . 19 19 7 . 10 . . Fabricators 12 | . . . . . . 9 2 . 1 . . Repair Stations 4 | . . . . . . 3 . . . 1 . Recycling Units 3 | . . . . . . . . 3 . . . Scanalyzers 7 | . . . . . . . 1 . 6 . . Garrison Access 1 | . . . . . . . 1 . . . . Terminal Hacks 56 | . . 1 27 . 13 7 2 . 6 . . Record 28 | . . . 27 . . . . . 1 . . Part Schematic 3 | . . . . . 2 1 . . . . . Prototype ID Bank 4 | . . . . . 2 . 1 . 1 . . Open Door 2 | . . 1 . . . . . . 1 . . Level Access Points 1 | . . . . . . . . . 1 . . Emergency Access Points 1 | . . . . . . 1 . . . . . Terminal Index 3 | . . . . . 1 . 1 . 1 . . Alert Level 5 | . . . . . 3 2 . . . . . Unreport Threat 1 | . . . . . 1 . . . . . . Locate Traps 2 | . . . . . 1 . . . 1 . . Maintenance Status 1 | . . . . . . 1 . . . . . Security Status 1 | . . . . . . 1 . . . . . Registered Components 1 | . . . . . 1 . . . . . . Zone Layout 3 | . . . . . 2 1 . . . . . Fabricator Hacks 8 | . . . . . . 6 2 . . . . Load Schematic 3 | . . . . . . 2 1 . . . . Build 5 | . . . . . . 4 1 . . . . Repair Station Hacks 1 | . . . . . . 1 . . . . . Scan Component 1 | . . . . . . 1 . . . . . Recycling Unit Hacks . | . . . . . . . . . . . . Scanalyzer 3 | . . . . . . . . . 3 . . Insert Component 1 | . . . . . . . . . 1 . . Analyze 2 | . . . . . . . . . 2 . . Garrison Access Hacks 1 | . . . . . . . 1 . . . . Seal Access 1 | . . . . . . . 1 . . . . Unauthorized Hacks 1 | . . . . . . . . 1 . . . Terminals . | . . . . . . . . . . . . Fabricators . | . . . . . . . . . . . . Repair Stations . | . . . . . . . . . . . . Recycling Units 1 | . . . . . . . . 1 . . . Mask 1 | . . . . . . . . 1 . . . Scanalyzers . | . . . . . . . . . . . . Garrison Access . | . . . . . . . . . . . . Data Cores Recovered . | . . . . . . . . . . . . Used . | . . . . . . . . . . . . Hacking Detections 24 | . . . . . 6 7 4 . 6 1 . Full Trace Events . | . . . . . . . . . . . . Feedback Events . | . . . . . . . . . . . . Feedback Blocked . | . . . . . . . . . . . . Robot Schematics Acquired . | . . . . . . . . . . . . Robots Built . | . . . . . . . . . . . . Matter . | . . . . . . . . . . . . Time . | . . . . . . . . . . . . Total Robot Build Rating . | . . . . . . . . . . . . Part Schematics Acquired 4 | . . . . . 2 1 . . 1 . . Parts Built 7 | . . . . . . 7 . . . . . Matter 730 | . . . . . . 584 146 . . . . Time 365 | . . . . . . 292 73 . . . . Total Part Build Rating 21 | . . . . . . 21 . . . . . Parts Repaired . | . . . . . . . . . . . . Time . | . . . . . . . . . . . . Parts Recycled . | . . . . . . . . . . . . Recycled Matter . | . . . . . . . . . . . . Retrieved Matter . | . . . . . . . . . . . . Retrieved Components . | . . . . . . . . . . . . Parts Scanalyzed 1 | . . . . . . . . . 1 . . Part Schematics Acquired 1 | . . . . . . . . . 1 . . Parts Damaged . | . . . . . . . . . . . . Bothacking | -11 -10 -10 -10 -9 -8 -7 -6 -5 -4 -3 -2 ------------ Run | Scr Mat Min Exi Min Mat Fac Fac Fac Fac Res Res Used RIF Installer . | . . . . . . . . . . . . Robots Hacked . | . . . . . . . . . . . . Non-combat . | . . . . . . . . . . . . Combat . | . . . . . . . . . . . . Robot Hacks Applied . | . . . . . . . . . . . . Relay Couplers Released . | . . . . . . . . . . . . Robots Rewired . | . . . . . . . . . . . . Allies Hacked . | . . . . . . . . . . . . Hacks Repelled . | . . . . . . . . . . . . Allies | -11 -10 -10 -10 -9 -8 -7 -6 -5 -4 -3 -2 -------- Run | Scr Mat Min Exi Min Mat Fac Fac Fac Fac Res Res Total Allies . | . . . . . . . . . . . . Largest Group . | . . . . . . . . . . . . Highest-Rated Group . | . . . . . . . . . . . . Highest-Rated Ally . | . . . . . . . . . . . . Total Orders . | . . . . . . . . . . . . Ally Attacks . | . . . . . . . . . . . . Total Damage . | . . . . . . . . . . . . Kills . | . . . . . . . . . . . . Allies Corrupted . | . . . . . . . . . . . . Allies Melted . | . . . . . . . . . . . . Intel | -11 -10 -10 -10 -9 -8 -7 -6 -5 -4 -3 -2 ------- Run | Scr Mat Min Exi Min Mat Fac Fac Fac Fac Res Res Robot Analysis Total . | . . . . . . . . . . . . Derelict Logs Recovered . | . . . . . . . . . . . . Drone Launches . | . . . . . . . . . . . . Drone Recoveries . | . . . . . . . . . . . . Exploration | -11 -10 -10 -10 -9 -8 -7 -6 -5 -4 -3 -2 ------------- Run | Scr Mat Min Exi Min Mat Fac Fac Fac Fac Res Res Turns Passed 8340 | 1 125 397 332 24 964 2179 607 97 844 334 2436 Spaces Moved 4655 | 1 95 269 303 22 486 1357 396 88 555 189 894 Core 107 | . . . . . . . . . . . 107 Treads . | . . . . . . . . . . . . Legs 4498 | 1 95 269 303 22 486 1357 396 88 555 189 737 Wheels . | . . . . . . . . . . . . Hover 50 | . . . . . . . . . . . 50 Flight . | . . . . . . . . . . . . Fastest Speed 50 | 120 120 120 90 90 100 100 107 107 107 112 50 Average Speed 116 | 120 120 120 103 90 100 103 108 107 110 126 154 Slowest Speed 1750 | 120 120 120 120 90 100 110 110 107 115 196 1750 Overloaded Moves . | . . . . . . . . . . . . Propulsion Burnouts . | . . . . . . . . . . . . Robots Hopped . | . . . . . . . . . . . . Cave-ins Triggered . | . . . . . . . . . . . . Exploration Rate (%) 23 | 2 17 45 64 8 50 39 10 3 16 6 24 Regions Visited 11 Branch Regions 3 Pre-discovered Areas 1 | . . . 1 . . . . . . . . Known Exits Taken 6 | . . 1 1 1 . . . 1 1 1 . Unknown Exits Taken 5 | 1 1 . . . 1 1 1 . . . . Scrap Searched 1 | . . 1 . . . . . . . . . Spaces Dug 49 | . . . . . 4 9 6 . 11 . 19 Terrain Destroyed 122 | . . 40 . . 19 10 6 . 28 . 19 Melee 49 | . . . . . 4 9 6 . 11 . 19 Projectile 1 | . . . . . . 1 . . . . . AOE 72 | . . 40 . . 15 . . . 17 . . Terrain Rammed . | . . . . . . . . . . . . Walls Destroyed . | . . . . . . . . . . . . Machines Disabled . | . . . . . . . . . . . . Actions | -11 -10 -10 -10 -9 -8 -7 -6 -5 -4 -3 -2 --------- Run | Scr Mat Min Exi Min Mat Fac Fac Fac Fac Res Res Total 7003 | 2 100 321 322 26 884 2025 538 90 724 257 1714 Wait 1641 | . . 23 4 5 308 505 92 . 85 29 590 Move 4644 | . 94 268 302 21 485 1356 395 87 554 188 894 Hop . | . . . . . . . . . . . . Pick Up 120 | . 3 5 3 . 21 29 6 1 12 5 35 Fast Attach 25 | . . 3 4 . . 6 3 . 8 1 . Attach 66 | . . 2 . . 7 7 5 2 4 3 36 Detach 2 | . . . . . 1 . 1 . . . . Swap 61 | . . 2 2 . 11 20 3 . 13 2 8 Drop 90 | 2 . 5 7 . 12 34 9 . 11 4 6 Fire 92 | . 3 13 . . 33 14 . . 3 17 9 Melee 259 | . . . . . 6 53 24 . 34 8 134 Ram 2 | . . . . . . . . . . . 2 Kick . | . . . . . . . . . . . . Crush . | . . . . . . . . . . . . Escape Stasis 1 | . . . . . . 1 . . . . . Rewire . | . . . . . . . . . . . . Trap . | . . . . . . . . . . . . Miscellaneous . | . . . . . . . . . . . . Route ------- -11/Scrapyard -10/Materials -10/Mines (discovered 2 exits: *Mat / *Exi) -10/Exiles -9/Mines -8/Materials -7/Factory -6/Factory -5/Factory -4/Factory (discovered 5 exits: *Res x4 / *Ext) -3/Research -2/Research (discovered 1 exit: [*Tes]) History --------- Turn | Location | Event 2 | -11/Scrapyard | Discovered new exit (range 0) 2 | -11/Scrapyard | Entered Materials 26 | -10/Materials | Discovered new exit (range 13) 127 | -10/Materials | Entered Mines 144 | -10/Mines | Met a Derelict bent on vengeance 157 | -10/Mines | Met a Derelict who couldn't figure out how to use a Trap Extractor 321 | -10/Mines | Build established: Mutant 341 | -10/Mines | Destroyed 8 combat bots 348 | -10/Mines | Discovered new exit (range 14) 496 | -10/Mines | Identified exit to Materials 519 | -10/Mines | Deemed a non-threat by the Exiles lab entrance 519 | -10/Mines | Discovered new exit (range 5) 522 | -10/Mines | Identified exit to Exiles 524 | -10/Mines | Entered Exiles 558 | -10/Exiles | Met 8R-AWN 578 | -10/Exiles | Met EX-HEX 612 | -10/Exiles | Met EX-BIN 629 | -10/Exiles | Aligned with FarCom system 630 | -10/Exiles | Given EX-Vault access code 681 | -10/Exiles | Opened EX-Vault 686 | -10/Exiles | Found Prototype Special Weapon 687 | -10/Exiles | Identified Field Lobotomy Kit 691 | -10/Exiles | Found Prototype Leg 691 | -10/Exiles | Identified Potential Leg 694 | -10/Exiles | Found Potential Leg 706 | -10/Exiles | Found Prototype Energy Cannon 706 | -10/Exiles | Identified Gui. Plasma Cannon 733 | -10/Exiles | Warned to stay clear of 0b10 Research branches 734 | -10/Exiles | Exiles lab attacked by MAIN.C 770 | -10/Exiles | Learned location of Zion (-6) 846 | -10/Exiles | Discovered new exit (range 14) 855 | -10/Exiles | Identified exit to Mines 856 | -10/Exiles | Left Exiles lab with Potential Leg 856 | -10/Exiles | Entered Mines 868 | -9/Mines | Discovered new exit (range 8) 880 | -9/Mines | Identified exit to Materials 880 | -9/Mines | Entered Materials 880 | -8/Materials | Evolved 4 slots: Propulsion x1, Utility x2, Weapon x1 1800 | -8/Materials | Build established: Infiltrator-Skirmisher 1830 | -8/Materials | Discovered new exit (range 5) 1844 | -8/Materials | Entered Factory 1844 | -7/Factory | Evolved 2 slots: Propulsion x1, Utility x1 2424 | -7/Factory | Build established: Infiltrator-Mutant 2475 | -7/Factory | Fabricated Transmission Jammer? 3078 | -7/Factory | Build established: Infiltrator-Assassin 3378 | -7/Factory | Fabricated Katana (x2) 3454 | -7/Factory | Fabricated Katana (x2) 3504 | -7/Factory | Build established: Mutant 3539 | -7/Factory | Fabricated Katana? 3978 | -7/Factory | Discovered new exit (range 9) 4023 | -7/Factory | Entered another Factory area 4023 | -6/Factory | Evolved 2 slots: Utility x2 4590 | -6/Factory | Discovered new exit (range 5) 4630 | -6/Factory | Entered another Factory area 4630 | -5/Factory | Evolved 2 slots: Utility x2 4660 | -5/Factory | Discovered new exit (range 18) 4727 | -5/Factory | Identified exit to Factory 4727 | -5/Factory | Entered another Factory area 4727 | -4/Factory | Evolved 2 slots: Power x1, Propulsion x1 5063 | -4/Factory | Discovered new exit (range 6) 5066 | -4/Factory | Identified exit to Extension 5239 | -4/Factory | Identified exit to Research 5571 | -4/Factory | Entered Research 5571 | -3/Research | Evolved 2 slots: Utility x1, Weapon x1 5707 | -3/Research | Found Imp. Powered Armor 5724 | -3/Research | Discovered new exit (range 10) 5884 | -3/Research | Identified exit to Research 5905 | -3/Research | Entered another Research area 5905 | -2/Research | Evolved 2 slots: Propulsion x1, Utility x1 6282 | -2/Research | Lost 6 parts (1p3n2u) 6687 | -2/Research | Build established: Scavenger-Mutant 6762 | -2/Research | System corruption reached 10% 6841 | -2/Research | Lost 3 parts (1n2u) 7065 | -2/Research | Lost 4 parts (1n2u1w) 8002 | -2/Research | Lost 5 parts (1p3n1u) 8087 | -2/Research | Lost 8 parts (2p4n2w) 8201 | -2/Research | Core integrity fell below 50% 8213 | -2/Research | System corruption reached 30% 8249 | -2/Research | Lost 8 parts (2p3n3w) 8278 | -2/Research | Spotted Striker 8278 | -2/Research | Spotted Executioner 8278 | -2/Research | Spotted Executioner 8279 | -2/Research | Spotted Executioner 8286 | -2/Research | Released all parts (9) 8306 | -2/Research | Core integrity fell below 20% 8317 | -2/Research | Lost 3 parts (1n1u1w) 8329 | -2/Research | Discovered new exit (range 15) 8341 | -2/Research | Destroyed by Striker with Plasma Lance Last Messages --------------- Released Huge Storage Unit. Released Adv. Hacking Suite. Released Imp. Core Analyzer. Released Adv. Signal Interpreter. Released KE Penetrator. U-05 Engineer builds a Wall. Penetrated by Slug. Hypermatter Reactor disabled. K-01 Serf collects debris. System corrupted: Heat flow error (+154). Slug penetrates Wall. Penetrated by Slug. Slug penetrates Wall. System corrupted: Component data lost. Slug penetrates Wall. O-16 Technician: "IFF HANDSHAKE FAILED. SECURING TERMINAL." EXIT=FOUND ALERT: Hostiles spotted, dispatching reinforcements to Terminal R015. System corrupted: Heat flow error (+213). Slammed into Striker. Map ----- +----------------------------------------------------+ | ?????????????????????????????????????????????????? | | ?????????????????????????????????????????????????? | | ?????????????????????????????????????????????????? | | ?????????????????????????????????????????????????? | | ?????????????????????????????????????????????????? | | ?????????????????????????????????????????????????? | | ?????????????????????????????????????????????????? | | ?????????????????????????????????????????????????? | | ?????????????????????????????????????????????????? | | ???????????????????????????????????######????????? | | ??????????????????????????????????? #????????? | | ??????????????????????????????????? #????????? | | ??????????????????????????????????? #????????? | | ??????????????????????????????????? #????????? | | ???????????????????????????????????# #????????? | | ???????????????????????????????????# #????????? | | ???????????????????????????????????# #????????? | | ???????????????????????????????????# #????????? | | ???????????????????????????????????# #????????? | | ???????????????????????????????????# ^^#????????? | | ???????????????????????????????????+ #???#####? | | ????????????????##########?????????# #?? ? | | ????????????????# #?????????# #?? ?? | | ????????????????# #?????????# #? """ ?? | | ????????????????# ##+######## #? """ ? | | ????????????????# ! @K # """ ? | | ????????????????# # R i # """ # | | ????????????????# ##g ### + """ # | | ????????????????###########Y #?# # # | | ??????????????????????????#g #?# # # | | ????????????????????????? g #?# ########## | | ??????????????????????? < #?# E | | ?????????????????????# ########?# E | | ?????????????????????#####?????????# h | | ???????????????????????????????????# | | ???????????????????????????????????######## | | ??????????????????????????????????????????# | | ?????????????????????????????????######???# | | ?????????????????????????????????#| !##### """ | | ?????????????????????????????????# """ | | ?????????????????????????????????#! T """ | | ?????????????????????????????????# ##### | | ??????????????????????????????#####+#####?# | | ??????????????????????????????# #?# | | ??????????????????????????????# = #?# """ | | ??????????????????????????????# ! #?# """ | | ??????????????????????????????# #?# """ | | ?????????????????????????????########""#### | | ?????????????????????????????# " | | ?????????????????????????????# # | +----------------------------------------------------+ Best States ------------- Heat Dissipation 49 Energy Generation 43 Energy Capacity 790 Matter Stores 300 Matter Capacity 300 Sight Range 22 Terrain Scan Range 16 Terrain Scan Density 10 Jamming Range 16 Armor Coverage 225 Resistance: KI 30 Weapon Shielding 66 Evasion (%) 58 Targeting Accuracy 8 Melee Accuracy 16 Target Analysis 8 Core Analysis 8 Armor Integrity Analysis 40 Offensive Hacking 26 Defensive Hacking 10 Item Schematics ----------------- Lrg. Storage Unit | -8/Materials | Hacked Transmission Jammer | -8/Materials | Hacked Katana | -7/Factory | Hacked Imp. Weapon Shielding | -4/Factory | Scanalyzed Robot Schematics ------------------ None Fabricated ------------ Transmission Jammer | x1 | -7/Factory Katana | x2 | -7/Factory Katana | x2 | -7/Factory Katana | x2 | -7/Factory Alien Tech Used ----------------- None Achievements -------------- None Challenges ------------ None Game ------ Seed GammaFortressFemtoactuators Manual? 0 Play Time 01:14:30 Cumulative 187.2 hours Start 2021.06.03 @ 18:37:18 End 2021.06.03 @ 20:38:28 Sessions 1 Manual Loads 0 Difficulty Rogue Special Mode None Game No. 225 Rogue 225 Adventurer 0 Explorer 0 Win Type - Total 2 Types 2/0/0/0/0/0/0/0/0 Lore% 58 Gallery% 76 Achievement% 56 Wizard Run 0 Options --------- ASCII 0 Keyboard 0 Movement Mouse Keybinds 1 Fullscreen 2 Font 24/Smallcaps Map View 76x50 Tactical HUD 1 Map Filters NONE Filters NONE Steam 1 RUN: 65d708c7-1283-4caf-aea2-9483895136d5